Cogmind - Beta 15 @@@ ROGUE MODE // 2025.06.05 @ 14:47:17 Player: cingulata Result: Destroyed by 6Y-7MQ(j) with Overtuned Pulse Rifle Performance ------------- Evolutions (0) 0 Regions Visited (3) 600 Robots Destroyed (5) 25 Value Destroyed (185) 185 Prototype IDs (11) 220 Alien Tech Used (0) 0 Bonus (800) 800 TOTAL SCORE: 1830 Bonus ------- Registered with UFD 300 Met Optimus in HQ 500 Cogmind --------- Core Integrity 0/250 Matter 219/300 Energy 74/160 System Corruption 0% Temperature Warm (102) Movement Rolling (115) Ox1 Location -9/Scraptown Parts ------- > --- POWER (1) -------- Light Nuclear Core > --- PROPULSION (2) --- Armored Huge Wheel > --- UTILITY (2) ------ Large Storage Unit Experimental Terrain Scan Processor > --- WEAPON (2) ------- Minigun Shock Bomb Launcher > --- INVENTORY (15) --- Ion Engine Ion Engine Light Treads Spiked Treads VTOL Module VTOL Module VTOL Module VTOL Module Cesium-ion Thruster Seismic Detector Hacking Suite EM Shotgun Minigun Gauss Rifle Peak State ------------ > --- POWER ------------ Light Nuclear Core > --- PROPULSION ------- Armored Huge Wheel > --- UTILITY ---------- Large Storage Unit Experimental Terrain Scan Processor > --- WEAPON ----------- Minigun Minigun > --- INVENTORY -------- Ion Engine Ion Engine Light Treads Spiked Treads VTOL Module VTOL Module VTOL Module VTOL Module Cesium-ion Thruster Seismic Detector Hacking Suite EM Shotgun Gauss Rifle Shock Bomb Launcher Grenade Launcher [Rating: 29] Favorites ----------- Power Ion Engine Engine Ion Engine Power Core Light Nuclear Core Propulsion Light Treads Treads Light Treads Wheel Armored Huge Wheel Utility Small Storage Unit Device Seismic Detector Storage Small Storage Unit Processor A0-MCA's Component Scanner Weapon Minigun Energy Gun Small Laser Ballistic Gun Minigun Ballistic Cannon Improved Light Cannon Launcher Grenade Launcher Special Weapon CPS Tube Build | -11 -10 -10 -9 ------- Run | Yrd Mat Sub Scr Slots Evolved . | . . . . Power . | . . . . Propulsion . | . . . . Utility . | . . . . Weapon . | . . . . Parts Attached 24 | 8 3 . 13 Power 2 | 1 . . 1 Engine 1 | 1 . . . Core 1 | . . . 1 Reactor . | . . . . Propulsion 4 | 2 . . 2 Treads 3 | 2 . . 1 Leg . | . . . . Wheel 1 | . . . 1 Hover . | . . . . Flight . | . . . . Utility 7 | 2 . . 5 Device 2 | 1 . . 1 Storage 3 | 1 . . 2 Processor 2 | . . . 2 Hackware . | . . . . Protection . | . . . . Artifact . | . . . . Weapon 11 | 3 3 . 5 Energy Gun 4 | 2 2 . . Energy Cannon . | . . . . Ballistic Gun 3 | 1 . . 2 Ballistic Cannon 1 | . 1 . . Launcher 2 | . . . 2 Special Weapon 1 | . . . 1 Impact Weapon . | . . . . Slashing Weapon . | . . . . Piercing Weapon . | . . . . Special Melee Weapon . | . . . . Unidentified Prototypes . | . . . . Parts Lost 1 | . . . 1 Power . | . . . . Propulsion . | . . . . Utility . | . . . . Weapon 1 | . . . 1 Highest Loss Streak 1 | . . . 1 To Critical Strikes . | . . . . Average Backups 8 | 3 7 8 9 Power 1 | . 1 1 1 Propulsion 2 | 2 2 1 2 Utility 1 | . 1 2 1 Weapon 4 | . 1 4 4 Tool/Special . | . . . . Unused Backups 16 | . 4 . 12 Power 1 | . . . 1 Propulsion 9 | . 3 . 6 Utility 2 | . . . 2 Weapon 3 | . . . 3 Tool/Special 1 | . 1 . . Average Slot Usage (%) 85 | . 98 100 83 Engine 13 | . 14 14 13 Treads 19 | . 28 28 18 Wheel 4 | . . . 4 Device 8 | . 14 14 7 Storage 14 | . 14 14 14 Processor 4 | . . . 5 Energy Gun 1 | . 10 14 . Ballistic Gun 16 | . 9 . 17 Peak Build Rating 29 | 7 10 10 29 Average Rating 14 | 5 8 10 15 On Entrance 6 | . 7 10 10 Naked Turns . | . . . . Heaviest Build 31 | 13 18 18 31 Greatest Support 40 | 40 40 40 40 Greatest Overweight (x) 1 | 1 . . 1 Average Overweight (x) . | . . . . Largest Inventory Capacity 15 | 8 8 8 15 Average Capacity 9 | 7 8 8 10 Most Carried 15 | 6 8 8 15 Average Carried 8 | 3 7 8 9 Final Capacity 15 | 8 8 8 15 Final Carried 14 | 6 8 8 14 Class Distribution -------------------- 100% | Mutant Dominant Class ---------------- Mutant | -10/Materials Mutant | -10/Subcaves Mutant | -9/Scraptown Resources | -11 -10 -10 -9 ----------- Run | Yrd Mat Sub Scr Matter Collected 401 | 204 97 . 100 Remotely . | . . . . Salvage Created 268 | 29 . . 239 Parts 12 | 5 . . 7 Haulers Intercepted . | . . . . Recyclers Shooed 1 | 1 . . . Parts Field Recycled . | . . . . Retrieved Matter . | . . . . Parts Self-Destructed . | . . . . Prevented . | . . . . Kills | -11 -10 -10 -9 ------- Run | Yrd Mat Sub Scr Combat Hostiles Destroyed 4 | . . . 4 AOE 4 | . . . 4 Classes Destroyed 3 | 1 . . 2 Tunneler 1 | 1 . . . Explorer 2 | . . . 2 Scrapper 2 | . . . 2 Best Kill Streak 4 | 1 . . 4 Combat Bots Only 4 | . . . 4 Max Kills in Single Turn 2 | 1 . . 2 Gunslinging . | . . . . Exploded 2 | . . . 2 Melee . | . . . . Uniques/NPCs Destroyed . | . . . . Combat | -11 -10 -10 -9 -------- Run | Yrd Mat Sub Scr Hostile Shots Fired 32 | . . . 32 Missed 6 | . . . 6 Hits 26 | . . . 26 Melee 6 | . . . 6 Projectile 20 | . . . 20 Critical Strikes 2 | . . . 2 Damage Taken 569 | . . . 569 Core 257 | . . . 257 Absorbed by Shields . | . . . . Core Remaining (%) 100 | 100 . . . Volleys Fired 9 | 1 4 . 4 Largest 2 | 2 2 . 2 Hottest 89 | 60 89 . 61 Shots Fired 18 | 2 8 . 8 Gun 13 | 2 7 . 4 Cannon 1 | . 1 . . Launcher 4 | . . . 4 Special . | . . . . Kinetic 9 | 1 4 . 4 Thermal 5 | 1 4 . . Explosive 2 | . . . 2 Electromagnetic 2 | . . . 2 Robot Hit Streak 7 | 1 7 . 1 Robot Miss Streak 2 | . 2 . 1 Penetration Max . | . . . . Secondary Targets . | . . . . Shots Hit Robots 8 | 1 6 . 1 Core Hits 14 | 1 2 . 11 Critical Kills . | . . . . Critical Parts Destroyed . | . . . . Critical Strikes . | . . . . Melee Attacks . | . . . . Impact . | . . . . Slashing . | . . . . Piercing . | . . . . Sneak Attacks . | . . . . Combat Hostiles . | . . . . Follow-up Attacks . | . . . . Damage Inflicted 794 | 13 59 . 722 Guns 102 | 10 54 . 38 Cannons . | . . . . Explosions 684 | . . . 684 Melee . | . . . . Ramming 8 | 3 5 . . Kinetic 62 | . 24 . 38 Thermal 451 | 10 30 . 411 Explosive 111 | . . . 111 Electromagnetic 162 | . . . 162 Impact . | . . . . Slashing . | . . . . Piercing . | . . . . Highest Corruption . | . . . . Average Corruption . | . . . . Corruption Purged . | . . . . Corruption Blocked . | . . . . Overload Shots . | . . . . Overflow Damage 13 | . . . 13 Projectiles . | . . . . Explosions 13 | . . . 13 Melee . | . . . . Knockbacks 1 | 1 . . . Impact 1 | 1 . . . Kinetic . | . . . . Secondary . | . . . . Self-Inflicted Damage 54 | . . . 54 Shots 3 | . . . 3 Rammed 5 | 2 3 . . Targets Rammed 5 | 2 3 . . Kicked . | . . . . Crushed . | . . . . Highest Temperature 96 | 20 27 . 96 Average Temperature 30 | 10 15 . 50 Received Heat Transfer 144 | . . . 144 Siege Activations . | . . . . Martial Activations . | . . . . Shielding Activations . | . . . . Robots Disrupted . | . . . . Combat Hostiles . | . . . . Robots Corrupted . | . . . . Combat Hostiles . | . . . . Parts Fried . | . . . . Impact Corruptions . | . . . . Robots Melted . | . . . . Combat Hostiles . | . . . . Parts Melted 3 | . . . 3 Heat Transferred 472 | 25 75 . 372 Parts Sabotaged . | . . . . Parts Stolen . | . . . . Parts Stripped . | . . . . Power Chain Reactions 1 | . . . 1 Alert | -11 -10 -10 -9 ------- Run | Yrd Mat Sub Scr Maximum Alert Level . | . . . . Low Security (%) 100 | 100 100 . . Level 1 . | . . . . Level 2 . | . . . . Level 3 . | . . . . Level 4 . | . . . . Level 5 . | . . . . High Security . | . . . . Max Security . | . . . . Peak Influence 5 | 5 . . . Initial . | . . . . Average . | . . . . Influence Increases 5 | 5 . . . Destroy 0b10 Robot/NC 5 | 5 . . . Influence Decreases 5 | 5 . . . Time Decay 5 | 5 . . . Squads Dispatched 2 | . 2 . . Investigation 2 | . 2 . . Extermination . | . . . . Reinforcement . | . . . . Assault . | . . . . Garrison . | . . . . Intercept . | . . . . Searches Triggered . | . . . . Construction Impeded . | . . . . Haulers Reinforced . | . . . . Active Scanning Responses . | . . . . Cargo Convoy Interrupts . | . . . . Stealth | -11 -10 -10 -9 --------- Run | Yrd Mat Sub Scr Distress Signals . | . . . . Communications Jammed . | . . . . Distress Signals . | . . . . Times Spotted 16 | . 2 . 14 Peak Tracking Total 11 | . 2 . 11 Tactical Retreats . | . . . . Traps | -11 -10 -10 -9 ------- Run | Yrd Mat Sub Scr Traps Triggered 1 | . 1 . . Indirectly . | . . . . Trap Hack Attempts . | . . . . Triggered . | . . . . Disarmed . | . . . . Reprogrammed . | . . . . Reused . | . . . . Traps Extracted . | . . . . Installed . | . . . . Triggered . | . . . . Machines | -11 -10 -10 -9 ---------- Run | Yrd Mat Sub Scr Machines Disabled . | . . . . Max in Single Turn . | . . . . Machines Repaired . | . . . . Machines Dismantled . | . . . . Machines Sabotaged . | . . . . Overloaded Fab Kills . | . . . . Hacking | -11 -10 -10 -9 --------- Run | Yrd Mat Sub Scr Machines Accessed 7 | . 2 . 5 Terminals 2 | . 2 . . Fabricators . | . . . . Repair Stations . | . . . . Recycling Units . | . . . . Scanalyzers . | . . . . Garrison Access . | . . . . Total Hacks 44 | . 6 . 38 Successful 39 | . 1 . 38 Failed 5 | . 5 . . Catastrophic . | . . . . Database Lockouts . | . . . . Manual . | . . . . Terminals 6 | . 6 . . Fabricators . | . . . . Repair Stations . | . . . . Recycling Units . | . . . . Scanalyzers . | . . . . Garrison Access . | . . . . Terminal Hacks 39 | . 1 . 38 Record 38 | . . . 38 Prototype ID Bank 1 | . 1 . . Fabricator Hacks . | . . . . Repair Station Hacks . | . . . . Recycling Unit Hacks . | . . . . Scanalyzer . | . . . . Garrison Access Hacks . | . . . . Unauthorized Hacks . | . . . . Terminals . | . . . . Fabricators . | . . . . Repair Stations . | . . . . Recycling Units . | . . . . Scanalyzers . | . . . . Garrison Access . | . . . . Data Cores Recovered 1 | . 1 . . Used . | . . . . Hacking Detections 2 | . 2 . . Full Trace Events 1 | . 1 . . Feedback Events . | . . . . Feedback Blocked . | . . . . Robot Schematics Acquired . | . . . . Robots Built . | . . . . Authchips . | . . . . Time . | . . . . Total Robot Build Rating . | . . . . Part Schematics Acquired . | . . . . Parts Built . | . . . . Authchips . | . . . . Time . | . . . . Total Part Build Rating . | . . . . Parts Repaired . | . . . . Time . | . . . . Parts Recycled . | . . . . Recycled Matter . | . . . . Retrieved Matter . | . . . . Retrieved Components . | . . . . Parts Scanalyzed . | . . . . Part Schematics Acquired . | . . . . Parts Damaged . | . . . . Bothacking | -11 -10 -10 -9 ------------ Run | Yrd Mat Sub Scr Used RIF Installer . | . . . . Robots Hacked . | . . . . Non-combat . | . . . . Combat . | . . . . Robot Hacks Applied . | . . . . Relay Couplers Released . | . . . . Fabnet Peak Effective % . | . . . . Robots Rewired . | . . . . Allies Hacked . | . . . . Hacks Repelled . | . . . . Allies | -11 -10 -10 -9 -------- Run | Yrd Mat Sub Scr Total Allies . | . . . . Largest Group . | . . . . Highest-Rated Group . | . . . . Highest-Rated Ally . | . . . . Total Orders . | . . . . Ally Attacks . | . . . . Total Damage . | . . . . Kills . | . . . . Allies Corrupted . | . . . . Allies Melted . | . . . . Intel | -11 -10 -10 -9 ------- Run | Yrd Mat Sub Scr Active Infowar (turns) 1809 | 46 221 53 1489 Seismic 1809 | 46 221 53 1489 Robot Analysis Total . | . . . . Derelict Logs Recovered . | . . . . Drone Launches . | . . . . Drone Recoveries . | . . . . Exploration | -11 -10 -10 -9 ------------- Run | Yrd Mat Sub Scr Turns Passed 3003 | 99 221 53 2630 Spaces Moved 2049 | 51 120 34 1844 Core 8 | 8 . . . Treads 1262 | 43 120 34 1065 Legs . | . . . . Wheels 779 | . . . 779 Hover . | . . . . Flight . | . . . . Fastest Speed 50 | 50 160 160 100 Average Speed 140 | 146 160 160 139 Slowest Speed 160 | 160 160 160 160 Overloaded Moves . | . . . . Propulsion Burnouts . | . . . . Robots Hopped . | . . . . Potential Cave-ins . | . . . . Cave-ins Triggered . | . . . . Exploration Rate (%) 31 | 4 24 3 93 Regions Visited 3 Branch Regions 2 Pre-discovered Areas . | . . . . Known Exits Taken . | . . . . Unknown Exits Taken 3 | 1 1 1 . Scrap Searched 2 | . . . 2 Spaces Dug . | . . . . Terrain Destroyed 22 | . . . 22 Melee . | . . . . Projectile . | . . . . AOE 22 | . . . 22 Terrain Rammed . | . . . . Walls Destroyed . | . . . . Machines Disabled . | . . . . Actions | -11 -10 -10 -9 --------- Run | Yrd Mat Sub Scr Total 2150 | 70 141 33 1906 Wait 12 | . . . 12 Move 2046 | 50 119 33 1844 Hop . | . . . . Pick Up 29 | 8 6 . 15 Fast Attach 11 | 6 2 . 3 Attach 6 | 2 . . 4 Detach 2 | . . . 2 Swap 8 | . 1 . 7 Drop 22 | 1 6 . 15 Fire 9 | 1 4 . 4 Melee . | . . . . Ram . | . . . . Kick . | . . . . Crush 5 | 2 3 . . Escape Stasis . | . . . . Rewire . | . . . . Trap . | . . . . Miscellaneous . | . . . . Route ------- -11/Scrapyard -10/Materials (discovered 2 exits: [*Mat] / [*Sub]) -10/Subcaves -9/Scraptown (discovered 2 exits: [*Fac x2]) History --------- Turn | Location | Event 10 | -11/Scrapyard | Discovered new exit (range 15) 100 | -11/Scrapyard | Entered Materials 101 | -10/Materials | Met a group of wandering Federalists 290 | -10/Materials | Discovered new exit (range 6) 316 | -10/Materials | Build established: Mutant 317 | -10/Materials | Discovered new exit (range 3) 321 | -10/Materials | Entered Subcaves 322 | -10/Subcaves | Continued accompanying wandering Federalists (1) 322 | -10/Subcaves | Approached by a straggling Scientist 323 | -10/Subcaves | Shifting Twisted Machinery released Piercing Trap 325 | -10/Subcaves | Shifting Twisted Machinery released Sub. Shrapnel Launcher 366 | -10/Subcaves | Scientist uncovered a shortcut to Scraptown 374 | -10/Subcaves | Entered Scraptown 636 | -9/Scraptown | Visited TADAMA 692 | -9/Scraptown | Visited The Evicted 720 | -9/Scraptown | Visited Awakened 776 | -9/Scraptown | Visited SPCMW 839 | -9/Scraptown | Heard Great Nut preacher, LISTEN AND RECITE! 1087 | -9/Scraptown | Received an X-ray algorithm 1095 | -9/Scraptown | Discovered new exit (range 7) 1279 | -9/Scraptown | Visited Assassins FH 1323 | -9/Scraptown | Visited Supply Room 1378 | -9/Scraptown | Visited UFD Registry 1378 | -9/Scraptown | Registered with UFD as "Megagrid" 1413 | -9/Scraptown | Visited Comm Corps 1685 | -9/Scraptown | Visited Chapter 10 1773 | -9/Scraptown | Visited Curators Association 1805 | -9/Scraptown | Visited Research Penetration Think Tank 1846 | -9/Scraptown | Visited A0-MCA Data Center 1856 | -9/Scraptown | Given an A rating by A0-MCA 1862 | -9/Scraptown | Found A0-MCA's Component Scanner 2000 | -9/Scraptown | Discovered new exit (range 5) 2064 | -9/Scraptown | Visited Junk Repository 2127 | -9/Scraptown | Visited DA-N13 Charitable Foundation 2165 | -9/Scraptown | Visited Infowarlord's Domain 2203 | -9/Scraptown | Visited Scrap Suit Storage 2250 | -9/Scraptown | Visited Derelict Rescue Squad 2801 | -9/Scraptown | Found Exp. Terrain Scan Processor 2858 | -9/Scraptown | Met Optimus 2858 | -9/Scraptown | Accepted into 0bPrime 2957 | -9/Scraptown | Civil war broke out across Scraptown 3000 | -9/Scraptown | Core integrity fell below 50% 3004 | -9/Scraptown | Core integrity fell below 20% 3004 | -9/Scraptown | Destroyed by 6Y-7MQ(j) with Overtuned Pulse Rifle Last Messages --------------- 02998_ Bolt penetrates N2-OEI(j). 02998_ Critical hit (Impale). 02998_ Grenade Launcher destroyed. 03001_ N2-OEI(j): "0bPrime is tearing us apart, don't fall for it!" 03001_ Chain reaction triggered in Imp. Deuterium Engine. 03001_ 14-2EA(x) destroyed. 03001_ Destroyed Lgt. Deuterium Engine. 03001_ Ovr. Titanium Leg melted. 03001_ Mak. Microdissipator Network melted. 03001_ N2-OEI(j) destroyed. 03001_ Penetrated by Bolt. 03003_ 6Y-7MQ(j) cannibalizes Corrupted VSS Leg to repair Ovr. Titanium Leg. 03003_ Penetrated by Bolt. 03004_ Destroyed Airjet. 03004_ Mak. Microdissipator Network melted. 03004_ QV-H2X(j) destroyed. 03004_ Q4-0CN(x) destroyed. Map ----- +----------------------------------------------------+ | | | | | | | | | | | | | | | ?????????????????????????????????????????????????? | | ?????????????????????????????????????????????????? | | ?????????????????????????????????????????????????? | | ?????????????????????????????????????????????????? | | ?????????????????????????????????????????????????? | | ?????????????????????????????????????????????????? | | ?????????????????????????????????????????????????? | | ?????????????????????????????????????????????????? | | ?????????????????????????????????????????????????? | | ?????????????????????????????????????????????????? | | ?????????????????????????????????????????????????? | | ????????????????????????????????#####????????????? | | ????????????????????????????????#"""#????????????? | | ?###################???######???#" "#????????????? | | ?"""##"""##""|##"""#??## ##### <*#????????????? | | #"" ##"" ##""|##!!"#### % *=#jh=!##???????????? | | #"" [!=[%%%j!j %=#???????????? | | # =%!=[h!j![[=#???????????? | | ####################### @x ;;! ;##???????????? | | ??????????????????????# [ ######???????????????? | | ??????????????????????# % ##????????????????????? | | ?????????????########?# = ##?????????????????????? | | ????????????#"""""""""## #??????????????????????? | | ????????????#"""""""""## #??????????????????????? | | ?##########?#"""""""""## #??????????????????????? | | ?#""""""""#?#"""""""""## #??????????????????????? | | ?#""""" ""#?#""" """## ###########????????????? | | ?#"" "#?#""" """## #*[# !# !#????????????? | | ?#"" "#?#""" "!"## #!!# ! #!=#????????????? | | ?#"" #?#"""" """## #! # #[ #????????????? | | ?#"" "#?#""" """## # #????????????? | | ?#" #?#" ## # ] #????????????? | | ?##### ####?###### ##### ## ########????????????? | | ###### ########### ##### ## ##########??????????? | | """""" """"""""""" """"" "" "## #??????????? | | "## $ #??????????? | | "## #??????????? | | "## ###??????????? | | "## ###??????????? | | [=%! #??????????? | | """""""""""""""""""""""" "## $ #??????????? | | """""""""""""""""""""""" "## #??????????? | | #### ################"" "#########??????????? | +----------------------------------------------------+ Best States ------------- Heat Dissipation 25 Energy Generation 14 Energy Capacity 250 Matter Stores 300 Matter Capacity 300 Sight Range 16 Terrain Scan Density 1010 Evasion (%) 40 Recoil Reduction 2 Item Schematics ----------------- None Robot Schematics ------------------ None Fabricated ------------ Nothing Repaired ---------- Nothing Alien Tech Used ----------------- None Achievements -------------- None Challenges ------------ None Game ------ Seed BattleActiveShell Manual? 0 Play Time 00:35:25 Cumulative 27.0 hours Start 2025.06.05 @ 14:15:05 End 2025.06.05 @ 14:47:17 Sessions 1 Manual Loads 0 Difficulty Rogue Special Mode None Game No. 19 Rogue 19 Adventurer 0 Explorer 0 Win Type - Total 0 Types 0/0/0/0/0/0/0/0/0/0 Lore% 20 Gallery% 18 Achievement% 19 Wizard Run 0 Options --------- Layout 1 ASCII 0 Keyboard 0 Movement Numpad Keybinds 0 Fullscreen 1 Font 32/SmallcapsGlow Map View 50x35 Zoom Use 0% Tactical HUD 1 Map Filters NONE Filters NONE Steam 1 RUN: 59b53385-cbe0-45f9-9e3d-4a26df55f432